bitfinex-derivatives/quotes_BNBF0:USTF0_20251010
["timestamp","ask_amount","ask_price","bid_price","bid_amount"]
[1760059684194,0.13855627,1255.0,1254.6,0.56251858]
[1760059684393,0.13855627,1255.0,1254.2,0.59208524]
[1760059684693,0.13855627,1255.0,1254.3,0.56264836]
[1760059684892,0.13855627,1255.0,1254.4,0.56264836]
[1760059685195,0.13855627,1255.0,1254.5,0.56264836]
[1760059685395,0.13855627,1255.0,1254.6,0.56264836]
[1760059685595,0.13855627,1255.0,1254.7,0.56264836]
[1760059685795,0.13855627,1255.0,1254.8,0.56264836]
[1760059685993,0.13855627,1255.0,1254.4,0.59208524]
[1760059686295,0.13855627,1255.0,1254.5,0.56267798]
[1760059686495,0.13855627,1255.0,1254.6,0.56267798]
[1760059686694,0.13855627,1255.0,1254.7,0.56267798]
[1760059686894,0.13855627,1255.0,1254.1,0.59208524]
[1760059687192,0.13855627,1255.0,1254.2,0.56281956]
[1760059687390,0.13855627,1255.0,1254.3,0.56281956]
[1760059687591,0.13855627,1255.0,1254.4,0.56281956]
[1760059687791,0.13855627,1255.0,1254.5,0.56281956]
[1760059687996,0.13855627,1255.0,1254.6,0.56281956]
[1760059688196,0.13855627,1255.0,1254.1,0.59208524]
[1760059688502,0.13855627,1255.0,1254.2,0.56305197]
[1760059688696,0.13855627,1255.0,1254.3,0.56305197]
[1760059688896,0.13855627,1255.0,1254.4,0.56305197]
[1760059689196,0.13855627,1255.0,1254.5,0.56305197]
[1760059689497,0.13855627,1255.0,1253.9,0.59208524]
[1760059689695,0.13855627,1255.0,1254.0,0.56323606]
[1760059689895,0.13855627,1255.0,1254.1,0.56323606]
[1760059690097,0.13855627,1255.0,1254.2,0.56323606]
[1760059690293,0.13855627,1255.0,1254.3,0.56323606]
[1760059690492,0.13855627,1255.0,1254.4,0.56323606]
[1760059690693,0.13855627,1255.0,1254.5,0.56323606]
[1760059690898,0.13855627,1255.0,1253.9,0.59208524]
[1760059691095,0.13855627,1255.0,1254.0,1.15541912]
[1760059691295,0.13855627,1255.0,1254.1,0.56333388]
[1760059691493,0.13855627,1255.0,1254.2,0.56333388]
[1760059691698,0.13855627,1255.0,1254.3,0.56333388]
[1760059691896,0.13855627,1255.0,1254.4,0.56333388]
[1760059692094,0.13855627,1255.0,1254.5,0.56333388]
[1760059692296,0.13855627,1255.0,1254.0,0.59208524]
[1760059692499,0.13855627,1255.0,1254.1,0.5635408]
[1760059692697,0.13855627,1255.0,1254.2,0.5635408]
[1760059692900,0.13855627,1255.0,1254.3,0.5635408]
[1760059693101,0.13855627,1255.0,1254.4,0.5635408]
[1760059693301,0.13855627,1255.0,1254.5,0.5635408]
[1760059693498,0.13855627,1255.0,1254.0,0.59208524]
[1760059693802,0.13855627,1255.0,1254.1,0.56358035]
[1760059694098,0.13855627,1255.0,1254.2,0.56358035]
[1760059694298,0.13855627,1255.0,1254.3,0.56358035]
[1760059694497,0.13855627,1255.0,1254.4,0.56358035]
[1760059694702,0.13855627,1255.0,1254.5,0.56358035]
[1760059694902,0.13855627,1255.0,1254.0,0.59208524]
[1760059695103,0.13855627,1255.0,1254.1,0.56318655]
[1760059695300,0.13855627,1255.0,1254.2,0.56318655]
[1760059695598,0.13855627,1255.0,1254.3,0.56318655]
[1760059695798,0.13855627,1255.0,1254.4,0.56318655]
[1760059696002,0.13855627,1255.0,1254.5,0.56318655]
[1760059696205,0.13855627,1255.0,1254.6,0.56318655]
[1760059696500,0.13855627,1255.0,1254.0,0.59208524]
[1760059696804,0.13855627,1255.0,1254.1,0.56329425]
[1760059697003,0.13855627,1255.0,1254.2,0.56329425]
[1760059697302,0.13855627,1255.0,1254.3,0.56329425]
[1760059697501,0.13855627,1255.0,1254.4,0.56329425]
[1760059697705,0.13855627,1255.0,1254.1,0.59208524]
[1760059698005,0.13855627,1255.0,1254.2,0.5633464]
[1760059698304,0.13855627,1255.0,1254.3,0.5633464]
[1760059698505,0.13855627,1255.0,1254.4,0.5633464]
[1760059698801,0.13855627,1255.0,1254.5,0.5633464]
[1760059699002,0.13855627,1255.0,1254.0,0.59208524]
[1760059699206,0.13855627,1255.0,1254.1,0.5634322]
[1760059699404,0.13855627,1255.0,1254.2,0.5634322]
[1760059699603,0.13855627,1255.0,1254.3,0.5634322]
[1760059699806,0.13855627,1255.0,1254.4,0.5634322]
[1760059700006,0.13855627,1255.0,1254.5,0.5634322]
[1760059700204,0.13855627,1255.0,1254.6,0.5634322]
[1760059700402,0.13855627,1255.0,1254.7,0.5634322]
[1760059700603,0.13855627,1255.0,1254.8,0.5634322]
[1760059700907,0.13855627,1255.0,1254.1,0.59208524]
[1760059701106,0.19528804,1254.2,1254.1,0.59208524]
[1760059701308,0.19528804,1254.2,1253.9,0.19677832]
[1760059701604,0.19528804,1254.2,1254.1,0.59420308]
[1760059701809,0.13855627,1255.0,1254.1,0.56350616]
[1760059702007,0.13855627,1255.0,1254.2,1.15770012]
[1760059702307,0.13855627,1255.0,1254.3,0.56350616]
[1760059702509,0.13855627,1255.0,1254.4,0.56350616]
[1760059702710,0.13855627,1255.0,1254.5,0.56350616]
[1760059702909,0.13855627,1255.0,1254.6,0.56350616]
[1760059703209,0.13855627,1255.0,1254.7,0.56350616]
[1760059703407,0.13855627,1255.0,1254.2,0.59419396]
[1760059703607,0.13855627,1255.0,1254.3,0.5636052]
[1760059703809,0.13855627,1255.0,1254.2,0.59419396]
[1760059703810,0.13855627,1255.0,1254.4,0.5636052]
[1760059704010,0.13855627,1255.0,1254.5,0.5636052]
[1760059704208,0.13855627,1255.0,1254.6,0.5636052]
[1760059704412,0.13855627,1255.0,1254.7,0.5636052]
[1760059704608,0.13855627,1255.0,1254.3,0.59419396]
[1760059704910,0.13855627,1255.0,1254.4,0.56365743]
[1760059705208,0.13855627,1255.0,1254.5,0.56365743]
[1760059705414,0.13855627,1255.0,1254.6,0.56365743]
[1760059705610,0.13855627,1255.0,1254.7,0.56365743]
[1760059705913,0.13855627,1255.0,1254.2,0.59419396]
[1760059706209,0.13855627,1255.0,1254.3,1.15791308]
[1760059706412,0.13855627,1255.0,1254.4,0.56371912]
[1760059706610,0.13855627,1255.0,1254.5,0.56371912]
[1760059706811,0.13855627,1255.0,1254.6,0.56371912]
[1760059707112,0.13855627,1255.0,1254.7,0.56371912]
[1760059707311,0.13855627,1255.0,1254.3,0.59419396]
[1760059707509,0.13855627,1255.0,1254.4,0.56383723]
[1760059707713,0.13855627,1255.0,1254.5,0.56383723]
[1760059708014,0.13855627,1255.0,1254.6,0.56383723]
[1760059708211,0.13855627,1255.0,1254.7,0.56383723]
[1760059708414,0.13855627,1255.0,1254.3,0.59419396]
[1760059708709,0.13855627,1255.0,1254.4,0.5639032]
[1760059709012,0.13855627,1255.0,1254.5,0.5639032]
[1760059709213,0.13855627,1255.0,1254.6,0.5639032]
[1760059709412,0.13855627,1255.0,1254.7,0.5639032]
[1760059709612,0.13855627,1255.0,1254.8,0.5639032]
[1760059709811,0.13855627,1255.0,1254.2,0.59462648]
[1760059710013,0.13855627,1255.0,1254.3,0.56396394]
[1760059710213,0.13855627,1255.0,1254.4,0.56396394]
[1760059710411,0.13855627,1255.0,1254.5,0.56396394]
[1760059710614,0.13855627,1255.0,1254.6,0.56396394]
[1760059710813,0.13855627,1255.0,1254.7,0.56396394]
[1760059711016,0.13855627,1255.0,1254.8,0.56396394]
[1760059711312,0.13855627,1255.0,1254.3,0.59462648]
[1760059711513,0.13855627,1255.0,1254.4,0.56408937]
[1760059711711,0.13855627,1255.0,1254.5,0.56408937]
[1760059711914,0.13855627,1255.0,1254.6,0.56408937]
[1760059712117,0.13855627,1255.0,1254.7,0.56408937]
[1760059712317,0.13855627,1255.0,1254.8,0.56408937]
[1760059712517,0.13855627,1255.0,1254.9,0.56408937]
[1760059714118,0.13855627,1255.0,1254.4,0.59462648]
[1760059714314,0.13855627,1255.0,1254.5,0.5640416]
[1760059714613,0.13855627,1255.0,1254.6,0.5640416]
[1760059714815,0.13855627,1255.0,1254.7,0.5640416]
[1760059715018,0.13855627,1255.0,1254.8,0.5640416]
[1760059715315,0.13855627,1255.0,1254.9,0.5640416]
[1760059716519,1.9701422,1257.6,1254.9,0.5640416]
[1760059716719,1.9701422,1257.7,1255.0,1.15866808]
[1760059716919,1.9701422,1257.7,1255.1,1.15866808]
[1760059717214,2.7581992,1258.1,1255.1,1.15866808]
[1760059717215,0.13853531,1257.1,1255.2,0.5640416]
[1760059717419,0.13853531,1257.1,1255.3,0.5640416]
[1760059717620,0.13853531,1257.1,1255.4,0.5640416]
[1760059717818,0.13853531,1257.1,1255.1,0.59462648]
[1760059718017,0.13853531,1257.1,1255.2,0.56311067]
[1760059718220,0.13853531,1257.1,1255.3,0.56311067]
[1760059718421,0.13853531,1257.1,1255.4,0.56311067]
[1760059718621,0.13853531,1257.1,1255.1,0.59462648]
[1760059718921,0.13853531,1257.1,1255.2,0.56273951]
[1760059719221,0.13853531,1257.1,1255.3,0.56273951]
[1760059719418,0.13853531,1257.1,1255.4,0.56273951]
[1760059719719,0.13853531,1257.1,1255.5,0.56273951]
[1760059720018,0.13853531,1257.1,1254.8,0.59462648]
[1760059720221,0.13853531,1257.1,1254.9,0.56227532]
[1760059720424,0.13853531,1257.1,1255.0,0.56227532]
[1760059720621,0.13853531,1257.1,1255.1,0.56227532]
[1760059720920,0.13853531,1257.1,1255.2,0.56227532]
[1760059721221,0.13853531,1257.1,1255.3,0.56227532]
[1760059721424,0.13853531,1257.1,1255.4,0.56227532]
[1760059721620,0.13853531,1257.1,1255.5,0.56227532]
[1760059721825,0.13853531,1257.1,1254.8,0.59462648]
[1760059722019,0.13853531,1257.1,1254.9,0.56210869]
[1760059722224,0.13853531,1257.1,1255.0,0.56210869]
[1760059722424,0.13853531,1257.1,1255.1,0.56210869]
[1760059722625,0.13853531,1257.1,1255.2,0.56210869]
[1760059722920,0.13853531,1257.1,1255.3,0.56210869]
[1760059723123,0.13853531,1257.1,1255.4,0.56210869]
[1760059723321,0.13853531,1257.1,1254.8,0.59462648]
[1760059723626,0.13853531,1257.1,1255.0,0.59462648]
[1760059723926,0.13853531,1257.1,1255.1,0.5618723]
[1760059724121,0.13853531,1257.1,1255.2,0.5618723]
[1760059724327,0.13853531,1257.1,1255.3,0.5618723]
[1760059724527,0.13853531,1257.1,1254.9,0.59462648]
[1760059724724,0.13853531,1257.1,1255.0,0.56177712]
[1760059724924,0.13853531,1257.1,1255.1,0.56177712]
[1760059725128,0.13853531,1257.1,1255.2,0.56177712]
[1760059725423,0.13853531,1257.1,1255.3,0.56177712]
[1760059725627,0.13853531,1257.1,1254.9,0.59462648]
[1760059725828,0.13853531,1257.1,1255.0,0.56176692]
[1760059726028,0.13853531,1257.1,1255.1,0.56176692]
[1760059726326,0.13853531,1257.1,1255.2,0.56176692]
[1760059726525,0.13853531,1257.1,1255.3,0.56176692]
[1760059726724,0.13853531,1257.1,1255.4,0.56176692]
[1760059727026,0.13853531,1257.1,1254.9,0.59462648]
[1760059727326,0.13853531,1257.1,1255.0,0.56162668]
[1760059727528,0.13853531,1257.1,1255.1,0.56162668]
[1760059727829,0.13853531,1257.1,1255.2,0.56162668]
[1760059728030,0.13853531,1257.1,1255.3,0.56162668]
[1760059728329,0.13853531,1257.1,1254.6,0.59462648]
[1760059728629,0.13853531,1257.1,1254.7,0.56170124]
[1760059728825,0.13853531,1257.1,1254.8,0.56170124]
[1760059729026,0.13853531,1257.1,1254.9,0.56170124]
[1760059729230,0.13853531,1257.1,1255.0,0.56170124]
[1760059729531,0.13853531,1257.1,1255.1,0.56170124]
[1760059729725,0.13853531,1257.1,1255.2,0.56170124]
[1760059729927,0.13853531,1257.1,1255.3,0.56170124]
[1760059730231,0.13853531,1257.1,1254.7,0.59462648]
[1760059730429,0.13853531,1257.1,1254.8,0.56170405]
[1760059730731,0.13853531,1257.1,1254.9,0.56170405]
[1760059730931,0.13853531,1257.1,1255.0,0.56170405]
[1760059731127,0.13853531,1257.1,1255.1,0.56170405]
[1760059731433,0.13853531,1257.1,1254.6,0.59462648]
[1760059731632,0.13853531,1257.1,1254.7,0.56181297]
[1760059731830,0.13853531,1257.1,1254.8,0.56181297]
[1760059732028,0.13853531,1257.1,1254.9,0.56181297]
[1760059732230,0.13853531,1257.1,1255.0,0.56181297]
[1760059732528,0.13853531,1257.1,1254.4,0.59462648]
[1760059732729,0.13853531,1257.1,1254.5,0.56195531]
[1760059732932,0.13853531,1257.1,1254.6,0.56195531]
[1760059733131,0.13853531,1257.1,1254.7,0.56195531]
[1760059733430,0.13853531,1257.1,1254.8,0.56195531]
[1760059733632,0.13853531,1257.1,1254.9,0.56195531]
[1760059733833,0.13853531,1257.1,1254.4,0.59462648]
[1760059734028,0.13853531,1257.1,1254.5,0.56207484]
[1760059734232,0.13853531,1257.1,1254.6,0.56207484]
[1760059734432,0.13853531,1257.1,1254.7,0.56207484]
[1760059734633,0.13853531,1257.1,1254.8,0.56207484]
[1760059734930,0.13853531,1257.1,1254.9,0.56207484]
[1760059735234,0.13853531,1257.1,1255.0,0.56207484]
[1760059735533,0.13853531,1257.1,1254.4,0.59462648]
[1760059735734,0.13853531,1257.1,1254.5,0.56228962]
[1760059736034,0.13853531,1257.1,1254.6,0.56228962]
[1760059736232,0.13853531,1257.1,1254.7,0.56228962]
[1760059736534,0.13853531,1257.1,1254.8,0.56228962]
[1760059736732,0.13853531,1257.1,1254.9,0.56228962]
[1760059736933,0.13853531,1257.1,1255.0,0.56228962]
[1760059737139,0.13853531,1257.1,1254.5,0.59462648]
[1760059737332,0.13853531,1257.1,1254.6,0.56234298]
[1760059737534,0.13853531,1257.1,1254.7,0.56234298]
[1760059737733,0.13853531,1257.1,1254.8,0.56234298]
[1760059738033,0.13853531,1257.1,1254.9,0.56234298]
[1760059738234,0.13853531,1257.1,1255.0,0.56234298]
[1760059738538,0.13853531,1257.1,1254.3,0.59462648]
[1760059738834,0.13853531,1257.1,1254.4,0.56240782]
[1760059739038,0.13853531,1257.1,1254.5,0.56240782]
[1760059739337,0.13853531,1257.1,1254.6,0.56240782]
[1760059739536,0.13853531,1257.1,1254.2,0.19677832]
[1760059739537,0.13853531,1257.1,1254.7,0.56240782]
[1760059739739,0.13853531,1257.1,1254.8,0.56240782]
[1760059739934,0.13853531,1257.1,1254.9,0.56240782]
[1760059740139,0.13853531,1257.1,1255.0,0.56240782]
[1760059740334,0.13853531,1257.1,1255.1,0.56240782]
[1760059740541,0.13853531,1257.1,1255.2,0.56240782]
[1760059740736,0.13853531,1257.1,1254.3,0.19677832]
[1760059740936,0.19518536,1254.6,1254.4,0.56245664]
[1760059741236,0.19518536,1254.6,1254.5,0.56245664]
[1760059741439,0.13853531,1257.1,1254.5,0.56245664]
[1760059741639,0.13853531,1257.1,1254.6,0.56245664]
[1760059741836,0.13853531,1257.1,1254.7,0.56245664]
[1760059742039,0.13853531,1257.1,1254.8,0.56245664]
[1760059742240,0.13853531,1257.1,1254.9,0.56245664]
[1760059742540,0.13853531,1257.1,1255.0,0.56245664]
[1760059742739,0.13853531,1257.1,1255.1,0.56245664]
[1760059742935,0.13853531,1257.1,1254.3,0.7914048]
[1760059743241,0.19520299,1254.6,1254.4,0.75925727]
[1760059743441,0.19520299,1254.6,1254.5,0.56247895]
[1760059743642,0.19520299,1254.6,1254.5,1.15710543]
[1760059744144,0.19520299,1254.6,1254.5,0.56247895]
[1760059746441,0.19520299,1254.6,1254.5,1.15528253]
[1760059748742,0.19520299,1254.6,1254.5,0.56247895]
[1760059749141,0.19520299,1254.6,1254.5,1.35264482]
[1760059749342,0.19520299,1254.6,1254.5,0.56247895]
[1760059757157,0.19520299,1254.6,1254.5,2.52817175]
[1760059759167,0.19520299,1254.6,1254.5,0.56247895]
[1760059767369,0.19520299,1254.6,1254.5,2.52613525]
[1760059768576,0.19520299,1254.6,1254.5,0.56247895]
[1760059787490,0.15642659,1255.3,1254.5,0.56247895]
[1760059787687,0.15642659,1255.3,1254.6,0.56247895]
[1760059787989,0.15642659,1255.3,1255.1,3.9432846]
[1760059788188,0.15642659,1255.3,1255.2,0.56247895]
[1760059799597,0.09514965,1255.3,1255.2,0.56247895]
[1760059807302,0.09514965,1255.3,1255.2,2.52345485]
[1760059808706,0.09514965,1255.3,1255.2,0.56247895]
[1760059815215,0.09514965,1255.3,1255.2,2.52767195]
[1760059815712,0.09514965,1255.3,1255.2,0.56247895]
[1760059816817,0.05803702,1255.3,1255.2,0.56247895]
[1760059824721,0.05803702,1255.3,1255.2,2.53129953]
[1760059825118,0.05803702,1255.3,1255.2,0.56247895]
[1760059828224,0.03548752,1255.3,1255.2,0.56247895]
[1760059829726,0.03548752,1255.3,1255.2,3.31867425]
[1760059830624,0.03548752,1255.3,1255.2,0.56247895]
[1760059831626,0.03548752,1255.3,1255.2,3.31867425]
[1760059833925,0.03548752,1255.3,1255.2,0.56247895]
[1760059834327,0.37935894,1255.6,1255.2,0.56247895]
[1760059834524,0.37935894,1255.6,1255.3,0.56247895]
[1760059834723,0.37935894,1255.6,1255.4,0.56247895]
[1760059834923,0.37935894,1255.6,1255.5,0.56247895]
[1760059836123,0.37935894,1255.6,1255.5,2.53133865]
[1760059837731,0.37935894,1255.6,1255.5,0.56247895]
[1760059839228,0.37935894,1255.6,1255.5,4.50089997]
[1760059840432,0.56944474,1255.9,1255.5,4.50089997]
[1760059840633,0.56944474,1255.9,1255.6,0.56247895]
[1760059840834,0.56944474,1255.9,1255.7,0.56247895]
[1760059841133,0.56944474,1255.9,1255.8,0.56247895]
[1760059844337,0.56944474,1255.9,1255.8,2.53150036]
[1760059845939,0.56944474,1255.9,1255.8,0.56247895]
[1760059847135,0.56944474,1255.9,1255.8,2.53007019]
[1760059847542,0.56944474,1255.9,1255.8,0.56247895]
[1760059853547,0.56944474,1255.9,1255.8,3.31220081]
[1760059854548,0.56944474,1255.9,1255.8,0.56247895]
[1760059856150,0.08856576,1255.9,1255.8,0.56247895]
[1760059862349,0.05830228,1255.9,1255.8,0.56247895]
[1760059868254,0.01827054,1256.2,1255.8,0.56247895]
[1760059868458,0.01827054,1256.2,1255.9,0.56247895]
[1760059868651,0.01827054,1256.2,1256.0,0.56247895]
[1760059868851,0.01827054,1256.2,1256.1,0.56247895]
[1760059872754,0.01827054,1256.2,1256.1,4.47863045]
[1760059873354,0.01827054,1256.2,1256.1,7.22138665]
[1760059874352,0.01827054,1256.2,1256.1,4.47863045]
[1760059874958,0.01827054,1256.2,1256.1,0.56247895]
[1760059875157,0.14695851,1256.3,1256.1,0.56247895]
[1760059875358,0.14695851,1256.3,1256.2,0.56247895]
[1760059887070,0.37010405,1256.4,1256.2,0.56247895]
[1760059887269,0.37010405,1256.4,1256.3,0.56247895]
[1760059887471,0.37010405,1256.4,1256.3,2.52802615]
[1760059889369,0.37010405,1256.4,1256.3,0.56247895]
[1760059890370,0.37010405,1256.4,1256.3,2.52802615]
[1760059890973,0.37010405,1256.4,1256.3,0.56247895]
[1760059898375,0.37010405,1256.4,1256.3,2.52802615]
[1760059899082,0.37010405,1256.4,1256.3,0.56247895]
[1760059909389,0.37010405,1256.4,1256.3,1.93692298]
[1760059909587,0.37010405,1256.4,1256.3,0.56247895]
[1760059909787,0.37010405,1256.4,1256.3,1.74046434]
[1760059911190,0.37010405,1256.4,1256.3,0.56247895]
[1760059911584,0.37010405,1256.4,1256.3,1.93584956]
[1760059911788,0.37010405,1256.4,1256.3,0.75882809]
[1760059912189,0.37010405,1256.4,1256.3,0.56247895]
[1760059921393,0.37010405,1256.4,1256.3,0.75832066]
[1760059922294,0.37010405,1256.4,1256.3,1.93327016]
[1760059923199,0.37010405,1256.4,1256.3,0.56247895]
[1760059925396,0.56390902,1256.4,1256.3,0.56247895]
[1760059925595,0.37010405,1256.4,1256.3,0.56247895]
[1760059926000,0.56394919,1256.4,1256.3,0.56247895]
[1760059926200,0.37010405,1256.4,1256.3,0.56247895]
[1760059926896,0.56396007,1256.4,1256.3,0.56247895]
[1760059927097,0.37010405,1256.4,1256.3,0.56247895]
[1760059927298,0.56399847,1256.4,1256.3,0.56247895]
[1760059927501,0.37010405,1256.4,1256.3,0.56247895]
[1760059928302,0.56404445,1256.4,1256.3,0.56247895]
[1760059928497,0.37010405,1256.4,1256.3,0.56247895]
[1760059928903,0.56404462,1256.4,1256.3,0.56247895]
[1760059929099,0.37010405,1256.4,1256.3,0.56247895]
[1760059929497,0.56408069,1256.4,1256.3,0.56247895]
[1760059929702,0.37010405,1256.4,1256.3,0.56247895]
[1760059930099,0.56407732,1256.4,1256.3,0.56247895]
[1760059930299,0.37010405,1256.4,1256.3,0.56247895]
[1760059930703,0.56413475,1256.4,1256.3,0.56247895]
[1760059930904,0.37010405,1256.4,1256.3,0.56247895]
[1760059931300,0.5641946,1256.4,1256.3,0.56247895]
[1760059931502,0.37010405,1256.4,1256.3,0.56247895]
[1760059931706,0.56419461,1256.4,1256.3,0.56247895]
[1760059931902,0.37010405,1256.4,1256.3,0.56247895]
[1760059932606,0.56435872,1256.4,1256.3,0.56247895]
[1760059932806,0.37010405,1256.4,1256.3,0.56247895]
[1760059933002,0.17572951,1256.4,1256.3,0.56247895]
[1760059933200,0.37006118,1256.4,1256.3,0.56247895]
[1760059933401,0.17572951,1256.4,1256.3,0.56247895]
[1760059934105,0.37011802,1256.4,1256.3,0.56247895]
[1760059934304,0.17572951,1256.4,1256.3,0.56247895]
[1760059934807,0.37012638,1256.4,1256.3,0.56247895]
[1760059935106,0.37019027,1256.4,1256.3,0.56247895]
[1760059935302,0.17572951,1256.4,1256.3,0.56247895]
[1760059935806,0.37019027,1256.4,1256.3,0.56247895]
[1760059936101,0.37019028,1256.4,1256.3,0.56247895]
[1760059936401,0.37024583,1256.4,1256.3,0.56247895]
[1760059936602,0.17572951,1256.4,1256.3,1.73752494]
[1760059937008,0.37025234,1256.4,1256.3,1.73752494]
[1760059937202,0.17572951,1256.4,1256.3,1.73752494]
[1760059937604,0.37030605,1256.4,1256.3,1.73752494]
[1760059937803,0.17572951,1256.4,1256.3,1.73752494]
[1760059938203,0.37036673,1256.4,1256.3,1.73752494]
[1760059938404,0.17572951,1256.4,1256.3,1.73752494]
[1760059938608,0.37036673,1256.4,1256.3,1.73752494]
[1760059938808,0.17572951,1256.4,1256.3,1.73752494]
[1760059939204,0.37043831,1256.4,1256.3,1.73752494]
[1760059939403,0.17572951,1256.4,1256.3,1.73752494]
[1760059939808,0.17572951,1256.4,1256.3,0.56247895]
[1760059942306,0.17572951,1256.4,1256.3,1.34888367]
[1760059946104,0.17572951,1256.4,1256.3,0.56247895]
[1760059946506,0.17572951,1256.4,1256.3,1.34888367]
[1760059946706,0.17572951,1256.4,1256.3,0.56247895]
[1760059947307,0.17572951,1256.4,1256.3,1.35215484]
[1760059948712,0.17572951,1256.4,1256.3,0.56247895]
[1760059951815,0.17572951,1256.4,1256.3,1.1552991]
[1760059952214,0.17572951,1256.4,1256.3,0.56247895]
[1760059958016,0.17572951,1256.4,1256.3,1.1552991]
[1760059959326,0.17572951,1256.4,1256.3,0.56247895]
[1760059975237,0.17572951,1256.4,1255.8,0.59282015]
[1760059975440,0.17572951,1256.4,1255.9,0.57834027]
[1760059975737,0.17572951,1256.4,1256.0,0.57834027]
[1760059975935,0.17572951,1256.4,1256.1,0.57834027]
[1760059976136,0.17572951,1256.4,1256.2,0.57834027]
[1760059976336,0.17572951,1256.4,1255.7,0.59282015]
[1760059976534,0.17572951,1256.4,1255.8,0.5782536]
[1760059976734,0.17572951,1256.4,1255.9,0.5782536]
[1760059976940,0.17572951,1256.4,1256.0,0.5782536]
[1760059977238,0.17572951,1256.4,1256.1,0.5782536]
[1760059977436,0.17572951,1256.4,1256.2,0.5782536]
[1760059977641,0.17572951,1256.4,1256.3,0.5782536]
[1760059988348,0.37173889,1256.4,1256.3,0.5782536]
[1760059988549,0.17572951,1256.4,1256.3,0.5782536]
[1760059989047,0.37173991,1256.4,1256.3,0.5782536]
[1760059989251,0.17572951,1256.4,1256.3,0.5782536]
[1760059989650,0.37173441,1256.4,1256.3,0.5782536]
[1760059989857,0.17572951,1256.4,1256.3,0.5782536]
[1760059990054,0.17572951,1256.4,1256.3,1.17183967]
[1760059993552,0.17572951,1256.4,1256.3,0.5782536]
[1760059993850,0.17572951,1256.4,1256.3,1.17212719]
[1760059994054,0.17572951,1256.4,1256.3,0.5782536]
[1760059996959,0.17572951,1256.4,1256.3,1.36955252]
[1760059997155,0.17572951,1256.4,1256.3,0.5782536]
[1760059997358,0.17572951,1256.4,1256.3,1.75329959]
[1760059997559,0.37189869,1256.4,1256.3,1.75329959]
[1760059997858,0.37189883,1256.4,1256.3,1.75329959]
[1760059998158,0.37189971,1256.4,1256.3,1.75329959]
[1760059998352,0.17572951,1256.4,1256.3,1.75329959]
[1760059998754,0.3719307,1256.4,1256.3,1.75329959]
[1760059999057,0.37192744,1256.4,1256.3,1.75329959]
[1760059999254,0.17572951,1256.4,1256.3,1.75329959]
[1760059999654,0.37193641,1256.4,1256.3,1.75329959]
[1760059999855,0.17572951,1256.4,1256.3,0.5782536]
[1760060000358,0.37192577,1256.4,1256.3,0.5782536]
[1760060000557,0.17572951,1256.4,1256.3,0.5782536]
[1760060000954,0.37192866,1256.4,1256.3,0.5782536]
[1760060001159,0.17572951,1256.4,1256.3,0.5782536]
[1760060001656,0.17572951,1256.4,1256.3,1.37005793]
[1760060002955,0.17572951,1256.4,1256.3,0.5782536]
[1760060003159,0.37192931,1256.4,1256.3,1.36991895]
[1760060003360,0.17572951,1256.4,1256.3,1.36991895]
[1760060003756,0.3719297,1256.4,1256.3,1.36991895]
[1760060003958,0.17572951,1256.4,1256.3,1.36991895]
[1760060004355,0.37191991,1256.4,1256.3,0.5782536]
[1760060004955,0.37191991,1256.4,1256.3,0.77409531]
[1760060006661,0.37191991,1256.4,1256.3,1.36958843]
[1760060006858,0.56812181,1256.4,1256.3,1.36958843]
[1760060007056,0.37191991,1256.4,1256.3,0.5782536]
[1760060007261,0.37191991,1256.4,1256.3,1.36968826]
[1760060010762,0.37191991,1256.4,1256.3,0.5782536]
[1760060012764,0.37191991,1256.4,1256.3,1.36968826]
[1760060013164,0.37191991,1256.4,1256.3,0.5782536]
[1760060013864,0.37191991,1256.4,1256.3,1.36968826]
[1760060015963,0.37191991,1256.4,1256.3,1.17179754]
[1760060021765,0.37191991,1256.4,1256.3,0.5782536]
[1760060024070,0.37191991,1256.4,1256.3,1.17179754]
[1760060026972,0.37191991,1256.4,1256.3,0.5782536]
[1760060027775,0.37191991,1256.4,1256.3,1.17179754]
[1760060029472,0.37191991,1256.4,1256.3,0.5782536]
[1760060041492,0.37191991,1256.4,1256.3,1.17179754]
[1760060042193,0.37191991,1256.4,1256.3,0.5782536]
[1760060080224,0.37191991,1256.4,1255.7,0.59354394]
[1760060080422,0.37191991,1256.4,1255.8,0.58055795]
[1760060080622,0.37191991,1256.4,1255.9,0.58055795]
[1760060080922,0.37191991,1256.4,1256.0,0.58055795]
[1760060081118,0.37191991,1256.4,1256.1,0.58055795]
[1760060081323,0.37191991,1256.4,1256.2,0.58055795]
[1760060081623,0.37191991,1256.4,1255.7,0.59354394]
[1760060081919,0.37191991,1256.4,1255.8,0.58049785]
[1760060082123,0.37191991,1256.4,1255.9,0.58049785]
[1760060082422,0.37191991,1256.4,1256.0,0.58049785]
[1760060082623,0.37191991,1256.4,1256.1,0.58049785]
[1760060082820,0.37191991,1256.4,1256.2,0.58049785]
[1760060083023,0.37191991,1256.4,1255.8,0.59354394]
[1760060083220,0.37191991,1256.4,1255.9,1.17396954]
[1760060083522,0.37191991,1256.4,1256.0,0.5804256]
[1760060083722,0.37191991,1256.4,1256.1,0.5804256]
[1760060083925,0.37191991,1256.4,1256.2,0.5804256]
[1760060084125,0.37191991,1256.4,1256.3,0.5804256]
[1760060088530,0.37191991,1256.4,1255.8,0.59354394]
[1760060088724,0.37191991,1256.4,1255.9,0.580393]
[1760060089027,0.37191991,1256.4,1256.0,0.580393]
[1760060089227,0.37191991,1256.4,1256.1,0.580393]
[1760060089523,0.37191991,1256.4,1256.2,0.580393]
[1760060089722,0.37191991,1256.4,1255.7,0.59354394]
[1760060089923,0.37191991,1256.4,1255.8,0.58037952]
[1760060090127,0.37191991,1256.4,1255.9,0.58037952]
[1760060090325,0.37191991,1256.4,1256.0,0.58037952]
[1760060090525,0.37191991,1256.4,1256.1,0.58037952]
[1760060090729,0.37191991,1256.4,1256.2,0.58037952]
[1760060090930,0.37191991,1256.4,1255.7,0.59354394]
[1760060091127,0.37191991,1256.4,1255.8,0.58029646]
[1760060091332,0.37191991,1256.4,1255.9,0.58029646]
[1760060091631,0.37191991,1256.4,1256.0,0.58029646]
[1760060091925,0.37191991,1256.4,1256.1,0.58029646]
[1760060092230,0.37191991,1256.4,1255.6,0.59354394]
[1760060092527,0.37191991,1256.4,1255.7,0.58013665]
[1760060092730,0.37191991,1256.4,1255.8,0.58013665]
[1760060092927,0.37191991,1256.4,1255.9,0.58013665]
[1760060093126,0.37191991,1256.4,1256.0,0.58013665]
[1760060093326,0.37191991,1256.4,1256.1,0.58013665]
[1760060093538,0.37191991,1256.4,1255.6,0.59354394]
[1760060093734,0.37191991,1256.4,1255.7,0.58006472]
[1760060093936,0.37191991,1256.4,1255.8,0.58006472]
[1760060094139,0.37191991,1256.4,1255.9,0.58006472]
[1760060094339,0.37191991,1256.4,1256.0,0.58006472]
[1760060094634,0.37191991,1256.4,1256.1,0.58006472]
[1760060094840,0.37191991,1256.4,1255.6,0.59354394]
[1760060095040,0.37191991,1256.4,1255.7,0.5800068]
[1760060095239,0.37191991,1256.4,1255.8,0.5800068]
[1760060095441,0.37191991,1256.4,1255.9,0.5800068]
[1760060095638,0.37191991,1256.4,1256.0,0.5800068]
[1760060095836,0.37191991,1256.4,1256.1,0.5800068]